[Event "Titled Tuesday Blitz November 29 Late 2022"]
[White "Han, Yichen"]
[Black "Qashashvili, Alexandre"]
[WhiteFideId "1054430"]
[BlackFideId "13600842"]
[WhiteElo "2323"]
[BlackElo "2405"]
[Result "1-0"]
[Round "02"]
[TimeControl "180+1"]
[Date "2022.11.30"]
[WhiteClock "0:00:17"]
[BlackClock "0:00:02"]

1. d4 {[%clk 0:03:00]}  c6 {[%clk 0:01:45]} 2. e4 {[%clk 0:02:59]}  d5 {[%clk 0:01:45]} 3. exd5 {[%clk 0:02:59]}  cxd5 {[%clk 0:01:25]} 4. c4 {[%clk 0:02:52]}  Nf6 {[%clk 0:01:26]} 5. Nc3 {[%clk 0:02:52]}  Nc6 {[%clk 0:01:25]} 6. Be2 {[%clk 0:02:49]}  Bf5 {[%clk 0:01:25]} 7. Bg5 {[%clk 0:02:40]}  e6 {[%clk 0:01:23]} 8. Nf3 {[%clk 0:02:34]}  dxc4 {[%clk 0:01:23]} 9. O-O {[%clk 0:02:31]}  Be7 {[%clk 0:01:22]} 10. Bxc4 {[%clk 0:02:31]}  O-O {[%clk 0:01:22]} 11. Re1 {[%clk 0:02:25]}  h6 {[%clk 0:01:21]} 12. Bf4 {[%clk 0:02:22]}  Bd6 {[%clk 0:01:20]} 13. Ne5 {[%clk 0:02:18]}  a6 {[%clk 0:01:17]} 14. Nxc6 {[%clk 0:02:06]}  bxc6 {[%clk 0:01:18]} 15. Be5 {[%clk 0:02:05]}  Nd5 {[%clk 0:01:14]} 16. Bf1 {[%clk 0:02:02]}  Nxc3 {[%clk 0:01:13]} 17. bxc3 {[%clk 0:02:02]}  Bxe5 {[%clk 0:01:14]} 18. Rxe5 {[%clk 0:02:02]}  Qd6 {[%clk 0:01:09]} 19. Qf3 {[%clk 0:01:59]}  Rfc8 {[%clk 0:01:07]} 20. Rc5 {[%clk 0:01:54]}  a5 {[%clk 0:01:01]} 21. a4 {[%clk 0:01:53]}  Bc2 {[%clk 0:00:54]} 22. g3 {[%clk 0:01:44]}  Bb3 {[%clk 0:00:42]} 23. Qe3 {[%clk 0:01:29]}  Rd8 {[%clk 0:00:35]} 24. Bd3 {[%clk 0:01:22]}  Re8 {[%clk 0:00:19]} 25. Qe4 {[%clk 0:01:15]}  f5 {[%clk 0:00:18]} 26. Qxc6 {[%clk 0:01:11]}  Qxc6 {[%clk 0:00:18]} 27. Rxc6 {[%clk 0:01:11]}  Rac8 {[%clk 0:00:17]} 28. Bb5 {[%clk 0:00:44]}  Rxc6 {[%clk 0:00:16]} 29. Bxc6 {[%clk 0:00:45]}  Rc8 {[%clk 0:00:16]} 30. Ra3 {[%clk 0:00:46]}  Bd5 {[%clk 0:00:08]} 31. Bxd5 {[%clk 0:00:43]}  exd5 {[%clk 0:00:09]} 32. Rb3 {[%clk 0:00:42]}  Rc4 {[%clk 0:00:09]} 33. Rb5 {[%clk 0:00:32]}  Rxa4 {[%clk 0:00:08]} 34. Rxd5 {[%clk 0:00:31]}  Rc4 {[%clk 0:00:08]} 35. Rxa5 {[%clk 0:00:31]}  Rxc3 {[%clk 0:00:09]} 36. Rxf5 {[%clk 0:00:32]}  Rd3 {[%clk 0:00:09]} 37. Rd5 {[%clk 0:00:33]}  Kf7 {[%clk 0:00:09]} 38. Kf1 {[%clk 0:00:33]}  Rd2 {[%clk 0:00:08]} 39. Rd7+ {[%clk 0:00:32]}  Kf6 {[%clk 0:00:08]} 40. Kg2 {[%clk 0:00:32]}  Rd3 {[%clk 0:00:07]} 41. Kh3 {[%clk 0:00:31]}  Rd2 {[%clk 0:00:06]} 42. f4 {[%clk 0:00:31]}  g5 {[%clk 0:00:06]} 43. fxg5+ {[%clk 0:00:29]}  hxg5 {[%clk 0:00:07]} 44. d5 {[%clk 0:00:29]}  Kf5 {[%clk 0:00:07]} 45. Rf7+ {[%clk 0:00:24]}  Kg6 {[%clk 0:00:06]} 46. Rd7 {[%clk 0:00:23]}  Kf5 {[%clk 0:00:06]} 47. g4+ {[%clk 0:00:19]}  Ke5 {[%clk 0:00:06]} 48. Rg7 {[%clk 0:00:18]}  Kf4 {[%clk 0:00:04]} 49. Rf7+ {[%clk 0:00:18]}  Ke4 {[%clk 0:00:03]} 50. Rf5 {[%clk 0:00:17]}  Rd3+ {[%clk 0:00:02]} 51. Kg2 {[%clk 0:00:17]} 1-0


[Site "https://www.chess.com"]

[Event "Titled Tuesday Blitz November 29 Late 2022"]
[White "Hardaway, Brewington"]
[Black "Buchenau, Frank"]
[WhiteFideId "30941849"]
[BlackFideId "4604350"]
[WhiteElo "2159"]
[BlackElo "2157"]
[Result "1-0"]
[Round "02"]
[TimeControl "180+1"]
[Date "2022.11.30"]
[WhiteClock "0:00:07"]
[BlackClock "0:00:08"]

1. Nf3 {[%clk 0:03:00]}  Nf6 {[%clk 0:02:58]} 2. d4 {[%clk 0:03:00]}  e6 {[%clk 0:02:58]} 3. c4 {[%clk 0:03:01]}  b6 {[%clk 0:02:58]} 4. Nc3 {[%clk 0:03:01]}  Bb4 {[%clk 0:02:57]} 5. Qb3 {[%clk 0:02:59]}  c5 {[%clk 0:02:56]} 6. g3 {[%clk 0:02:58]}  Bb7 {[%clk 0:02:56]} 7. Bg2 {[%clk 0:02:57]}  Nc6 {[%clk 0:02:53]} 8. dxc5 {[%clk 0:02:46]}  Nd4 {[%clk 0:02:36]} 9. Nxd4 {[%clk 0:02:40]}  Bxg2 {[%clk 0:02:34]} 10. Rg1 {[%clk 0:02:29]}  Bxc5 {[%clk 0:02:19]} 11. Nxe6 {[%clk 0:02:20]}  dxe6 {[%clk 0:02:11]} 12. Qa4+ {[%clk 0:02:17]}  Ke7 {[%clk 0:01:46]} 13. Rxg2 {[%clk 0:02:17]}  Re8 {[%clk 0:01:06]} 14. Bf4 {[%clk 0:01:59]}  Kf8 {[%clk 0:00:57]} 15. Rd1 {[%clk 0:01:48]}  Qc8 {[%clk 0:00:56]} 16. Nb5 {[%clk 0:01:14]}  Qc6 {[%clk 0:00:47]} 17. f3 {[%clk 0:01:14]}  e5 {[%clk 0:00:36]} 18. Bg5 {[%clk 0:00:44]}  e4 {[%clk 0:00:37]} 19. f4 {[%clk 0:00:40]}  e3 {[%clk 0:00:36]} 20. Rg1 {[%clk 0:00:39]}  Ng4 {[%clk 0:00:33]} 21. h3 {[%clk 0:00:33]}  Nf2 {[%clk 0:00:31]} 22. Nc3 {[%clk 0:00:32]}  Qxa4 {[%clk 0:00:20]} 23. Nxa4 {[%clk 0:00:31]}  Bb4+ {[%clk 0:00:19]} 24. Nc3 {[%clk 0:00:29]}  f6 {[%clk 0:00:16]} 25. Bh4 {[%clk 0:00:29]}  Nxd1 {[%clk 0:00:15]} 26. Kxd1 {[%clk 0:00:30]}  Rac8 {[%clk 0:00:14]} 27. Kc2 {[%clk 0:00:29]}  Rxc4 {[%clk 0:00:14]} 28. Kb3 {[%clk 0:00:30]}  Rd4 {[%clk 0:00:13]} 29. Nb5 {[%clk 0:00:29]}  Rde4 {[%clk 0:00:13]} 30. g4 {[%clk 0:00:26]}  Bd2 {[%clk 0:00:13]} 31. Nd6 {[%clk 0:00:19]}  Rb4+ {[%clk 0:00:12]} 32. Kc2 {[%clk 0:00:19]}  Rd8 {[%clk 0:00:12]} 33. Nf5 {[%clk 0:00:19]}  Rc8+ {[%clk 0:00:12]} 34. Kb1 {[%clk 0:00:19]}  Bc3 {[%clk 0:00:11]} 35. b3 {[%clk 0:00:19]}  Bd2 {[%clk 0:00:10]} 36. Bg3 {[%clk 0:00:11]}  a5 {[%clk 0:00:10]} 37. Nd6 {[%clk 0:00:11]}  Rc6 {[%clk 0:00:10]} 38. f5 {[%clk 0:00:12]}  a4 {[%clk 0:00:10]} 39. Nb7 {[%clk 0:00:09]}  axb3 {[%clk 0:00:10]} 40. Bd6+ {[%clk 0:00:09]}  Rxd6 {[%clk 0:00:09]} 41. Nxd6 {[%clk 0:00:09]}  bxa2+ {[%clk 0:00:09]} 42. Kxa2 {[%clk 0:00:10]}  b5 {[%clk 0:00:08]} 43. Rb1 {[%clk 0:00:09]}  Rxb1 {[%clk 0:00:07]} 44. Kxb1 {[%clk 0:00:10]}  b4 {[%clk 0:00:08]} 45. Nc4 {[%clk 0:00:10]}  Ke7 {[%clk 0:00:08]} 46. Kc2 {[%clk 0:00:10]}  Kd7 {[%clk 0:00:08]} 47. Kb3 {[%clk 0:00:11]}  Kc6 {[%clk 0:00:09]} 48. Nb2 {[%clk 0:00:11]}  Kd5 {[%clk 0:00:08]} 49. Nd3 {[%clk 0:00:12]}  Ke4 {[%clk 0:00:09]} 50. Kc4 {[%clk 0:00:13]}  b3 {[%clk 0:00:08]} 51. Kxb3 {[%clk 0:00:12]}  g6 {[%clk 0:00:09]} 52. fxg6 {[%clk 0:00:08]}  hxg6 {[%clk 0:00:10]} 53. Kc4 {[%clk 0:00:08]}  f5 {[%clk 0:00:10]} 54. gxf5 {[%clk 0:00:08]}  gxf5 {[%clk 0:00:09]} 55. h4 {[%clk 0:00:09]}  f4 {[%clk 0:00:08]} 56. Nc5+ {[%clk 0:00:09]}  Kf5 {[%clk 0:00:08]} 57. Kd3 {[%clk 0:00:09]}  Kg4 {[%clk 0:00:08]} 58. Ke4 {[%clk 0:00:09]}  Kxh4 {[%clk 0:00:06]} 59. Kxf4 {[%clk 0:00:10]}  Kh3 {[%clk 0:00:06]} 60. Kf3 {[%clk 0:00:10]}  Kh4 {[%clk 0:00:07]} 61. Ne4 {[%clk 0:00:09]}  Kh5 {[%clk 0:00:07]} 62. Ng3+ {[%clk 0:00:09]}  Kg6 {[%clk 0:00:07]} 63. Kg4 {[%clk 0:00:09]}  Kf6 {[%clk 0:00:07]} 64. Kf4 {[%clk 0:00:10]}  Ke6 {[%clk 0:00:06]} 65. Nf1 {[%clk 0:00:10]}  Kd5 {[%clk 0:00:06]} 66. Kf3 {[%clk 0:00:10]}  Ke5 {[%clk 0:00:06]} 67. Ng3 {[%clk 0:00:10]}  Kd5 {[%clk 0:00:06]} 68. Ne4 {[%clk 0:00:10]}  Ke5 {[%clk 0:00:06]} 69. Nc5 {[%clk 0:00:10]}  Kd5 {[%clk 0:00:06]} 70. Nd3 {[%clk 0:00:08]}  Kd4 {[%clk 0:00:06]} 71. Nf4 {[%clk 0:00:09]}  Bc1 {[%clk 0:00:06]} 72. Nh3 {[%clk 0:00:09]}  Bd2 {[%clk 0:00:07]} 73. Ng5 {[%clk 0:00:09]}  Bc1 {[%clk 0:00:08]} 74. Nf7 {[%clk 0:00:09]}  Bd2 {[%clk 0:00:09]} 75. Nd8 {[%clk 0:00:10]}  Bc1 {[%clk 0:00:09]} 76. Nc6+ {[%clk 0:00:10]}  Kd5 {[%clk 0:00:09]} 77. Nb4+ {[%clk 0:00:11]}  Kd4 {[%clk 0:00:10]} 78. Nd3 {[%clk 0:00:11]}  Bd2 {[%clk 0:00:10]} 79. Kf4 {[%clk 0:00:11]}  Bc3 {[%clk 0:00:10]} 80. Ne5 {[%clk 0:00:09]}  Bd2 {[%clk 0:00:11]} 81. Nf3+ {[%clk 0:00:09]}  Kc3 {[%clk 0:00:10]} 82. Ke4 {[%clk 0:00:09]}  Kc2 {[%clk 0:00:09]} 83. Nd4+ {[%clk 0:00:08]}  Kd1 {[%clk 0:00:09]} 84. Kd3 {[%clk 0:00:08]}  Ke1 {[%clk 0:00:09]} 85. Nf3+ {[%clk 0:00:06]}  Kd1 {[%clk 0:00:09]} 86. Ng1 {[%clk 0:00:04]}  Ke1 {[%clk 0:00:09]} 87. Nf3+ {[%clk 0:00:04]}  Kd1 {[%clk 0:00:10]} 88. Nh2 {[%clk 0:00:05]}  Ke1 {[%clk 0:00:10]} 89. Ng4 {[%clk 0:00:06]}  Kd1 {[%clk 0:00:11]} 90. Nxe3+ {[%clk 0:00:06]}  Ke1 {[%clk 0:00:10]} 91. Nc2+ {[%clk 0:00:05]}  Kd1 {[%clk 0:00:10]} 92. e4 {[%clk 0:00:06]}  Bf4 {[%clk 0:00:09]} 93. Nd4 {[%clk 0:00:06]}  Ke1 {[%clk 0:00:09]} 94. Ne2 {[%clk 0:00:06]}  Bh2 {[%clk 0:00:08]} 95. Ke3 {[%clk 0:00:06]}  Kd1 {[%clk 0:00:08]} 96. Nd4 {[%clk 0:00:06]}  Ke1 {[%clk 0:00:08]} 97. Nf3+ {[%clk 0:00:06]}  Kf1 {[%clk 0:00:08]} 98. Nxh2+ {[%clk 0:00:07]} 1-0


[Site "https://www.chess.com"]

[Event "Titled Tuesday Blitz November 29 Late 2022"]
[White "Haszon, David"]
[Black "Kovacevic, Radmila"]
[WhiteFideId "733610"]
[BlackFideId "933171"]
[WhiteElo "2211"]
[BlackElo "2208"]
[Result "1-0"]
[Round "02"]
[TimeControl "180+1"]
[Date "2022.11.30"]
[WhiteClock "0:02:17"]
[BlackClock "0:01:50"]

1. e4 {[%clk 0:03:00]}  e5 {[%clk 0:02:59]} 2. Nf3 {[%clk 0:03:00]}  f5 {[%clk 0:02:58]} 3. Nxe5 {[%clk 0:02:59]}  Qf6 {[%clk 0:02:57]} 4. d4 {[%clk 0:02:56]}  d6 {[%clk 0:02:56]} 5. Nc4 {[%clk 0:02:56]}  fxe4 {[%clk 0:02:56]} 6. Nc3 {[%clk 0:02:54]}  Qg6 {[%clk 0:02:55]} 7. Nd5 {[%clk 0:02:46]}  Na6 {[%clk 0:02:54]} 8. Nce3 {[%clk 0:02:44]}  c6 {[%clk 0:02:47]} 9. Bxa6 {[%clk 0:02:42]}  cxd5 {[%clk 0:02:45]} 10. Bb5+ {[%clk 0:02:40]}  Kd8 {[%clk 0:02:34]} 11. O-O {[%clk 0:02:31]}  Nh6 {[%clk 0:02:08]} 12. Nxd5 {[%clk 0:02:20]}  Bh3 {[%clk 0:02:04]} 13. Nf4 {[%clk 0:02:20]}  Qg5 {[%clk 0:01:55]} 14. Ne6+ {[%clk 0:02:17]}  Bxe6 {[%clk 0:01:50]} 15. Bxg5+ {[%clk 0:02:17]} 1-0


[Site "https://www.chess.com"]

[Event "Titled Tuesday Blitz November 29 Late 2022"]
[White "Howell, David W L"]
[Black "Kim, Sergey"]
[WhiteFideId "410608"]
[BlackFideId "13700570"]
[WhiteElo "2567"]
[BlackElo "2618"]
[Result "1-0"]
[Round "02"]
[TimeControl "180+1"]
[Date "2022.11.30"]
[WhiteClock "0:01:03"]
[BlackClock "0:01:12"]

1. Nc3 {[%clk 0:02:55]}  Nf6 {[%clk 0:02:59]} 2. e4 {[%clk 0:02:52]}  e5 {[%clk 0:02:59]} 3. Nf3 {[%clk 0:02:51]}  Nc6 {[%clk 0:02:58]} 4. g3 {[%clk 0:02:51]}  g6 {[%clk 0:02:57]} 5. Bg2 {[%clk 0:02:49]}  Bg7 {[%clk 0:02:58]} 6. O-O {[%clk 0:02:49]}  O-O {[%clk 0:02:58]} 7. d4 {[%clk 0:02:50]}  exd4 {[%clk 0:02:57]} 8. Nxd4 {[%clk 0:02:51]}  d6 {[%clk 0:02:56]} 9. Nde2 {[%clk 0:02:45]}  Re8 {[%clk 0:02:51]} 10. h3 {[%clk 0:02:45]}  Bd7 {[%clk 0:02:51]} 11. g4 {[%clk 0:02:39]}  h6 {[%clk 0:02:47]} 12. Ng3 {[%clk 0:02:39]}  Rb8 {[%clk 0:02:42]} 13. Be3 {[%clk 0:02:26]}  b5 {[%clk 0:02:39]} 14. a3 {[%clk 0:02:26]}  a5 {[%clk 0:02:38]} 15. Qd2 {[%clk 0:02:24]}  Kh7 {[%clk 0:02:33]} 16. b3 {[%clk 0:02:12]}  b4 {[%clk 0:02:24]} 17. axb4 {[%clk 0:02:13]}  axb4 {[%clk 0:02:24]} 18. Nce2 {[%clk 0:02:08]}  Ng8 {[%clk 0:02:04]} 19. Ra2 {[%clk 0:01:54]}  Qh4 {[%clk 0:01:51]} 20. Nd4 {[%clk 0:01:39]}  Nxd4 {[%clk 0:01:42]} 21. Bxd4 {[%clk 0:01:39]}  Bc6 {[%clk 0:01:29]} 22. Bxg7 {[%clk 0:01:35]}  Kxg7 {[%clk 0:01:28]} 23. Ra7 {[%clk 0:01:35]}  Re7 {[%clk 0:01:25]} 24. Qd4+ {[%clk 0:01:10]}  Qf6 {[%clk 0:01:13]} 25. Qxf6+ {[%clk 0:01:04]}  Nxf6 {[%clk 0:01:12]} 26. e5 {[%clk 0:01:03]} 1-0


[Site "https://www.chess.com"]

[Event "Titled Tuesday Blitz November 29 Late 2022"]
[White "Huber, Benedikt"]
[Black "Girel, Joseph"]
[WhiteFideId "12923583"]
[BlackFideId "36033561"]
[WhiteElo "2199"]
[BlackElo "2281"]
[Result "0-1"]
[Round "02"]
[TimeControl "180+1"]
[Date "2022.11.30"]
[WhiteClock "0:00:09"]
[BlackClock "0:00:55"]

1. d4 {[%clk 0:03:00]}  Nf6 {[%clk 0:02:48]} 2. Nf3 {[%clk 0:03:01]}  b6 {[%clk 0:02:46]} 3. b3 {[%clk 0:02:57]}  Bb7 {[%clk 0:02:45]} 4. Bb2 {[%clk 0:02:57]}  g6 {[%clk 0:02:45]} 5. e3 {[%clk 0:02:56]}  Bg7 {[%clk 0:02:45]} 6. Be2 {[%clk 0:02:57]}  O-O {[%clk 0:02:44]} 7. O-O {[%clk 0:02:58]}  e6 {[%clk 0:02:44]} 8. c4 {[%clk 0:02:58]}  Ne4 {[%clk 0:02:43]} 9. Nbd2 {[%clk 0:02:58]}  d6 {[%clk 0:02:43]} 10. Qc2 {[%clk 0:02:57]}  Nxd2 {[%clk 0:02:42]} 11. Nxd2 {[%clk 0:02:56]}  Nd7 {[%clk 0:02:42]} 12. Bf3 {[%clk 0:02:56]}  Qc8 {[%clk 0:02:41]} 13. b4 {[%clk 0:02:50]}  a6 {[%clk 0:02:41]} 14. Rfc1 {[%clk 0:02:47]}  Bxf3 {[%clk 0:02:36]} 15. Nxf3 {[%clk 0:02:47]}  Qb7 {[%clk 0:02:36]} 16. Rab1 {[%clk 0:02:45]}  Nf6 {[%clk 0:02:34]} 17. c5 {[%clk 0:02:40]}  b5 {[%clk 0:02:25]} 18. cxd6 {[%clk 0:02:22]}  cxd6 {[%clk 0:02:23]} 19. Qc6 {[%clk 0:02:22]}  Qxc6 {[%clk 0:02:13]} 20. Rxc6 {[%clk 0:02:23]}  Rfc8 {[%clk 0:02:11]} 21. Rbc1 {[%clk 0:02:23]}  Rxc6 {[%clk 0:02:09]} 22. Rxc6 {[%clk 0:02:24]}  Nd5 {[%clk 0:02:09]} 23. a3 {[%clk 0:02:18]}  Bf8 {[%clk 0:01:50]} 24. Kf1 {[%clk 0:02:18]}  a5 {[%clk 0:01:49]} 25. bxa5 {[%clk 0:02:15]}  Rxa5 {[%clk 0:01:50]} 26. e4 {[%clk 0:02:06]}  Nf4 {[%clk 0:01:49]} 27. Rc8 {[%clk 0:01:24]}  Nd3 {[%clk 0:01:43]} 28. Rc2 {[%clk 0:01:13]}  b4 {[%clk 0:01:29]} 29. axb4 {[%clk 0:01:11]}  Ra2 {[%clk 0:01:27]} 30. Ke2 {[%clk 0:00:37]}  Nxb2 {[%clk 0:01:21]} 31. Nd2 {[%clk 0:00:16]}  d5 {[%clk 0:01:20]} 32. exd5 {[%clk 0:00:14]}  Bxb4 {[%clk 0:01:18]} 33. d6 {[%clk 0:00:13]}  Bxd6 {[%clk 0:01:06]} 34. Nc4 {[%clk 0:00:13]}  Nxc4 {[%clk 0:01:00]} 35. Rxa2 {[%clk 0:00:14]}  Nb6 {[%clk 0:00:58]} 36. Ra6 {[%clk 0:00:13]}  Bc7 {[%clk 0:00:57]} 37. Ra7 {[%clk 0:00:10]}  Nd5 {[%clk 0:00:56]} 38. g3 {[%clk 0:00:09]}  Bb6 {[%clk 0:00:56]} 39. Kd3 {[%clk 0:00:09]}  Bxa7 {[%clk 0:00:55]} 0-1


[Site "https://www.chess.com"]

[Event "Titled Tuesday Blitz November 29 Late 2022"]
[White "Ibarra Jerez, Jose Carlos"]
[Black "Obrien, Matthew"]
[WhiteFideId "2226332"]
[BlackFideId "2059150"]
[WhiteElo "2638"]
[BlackElo "2604"]
[Result "0-1"]
[Round "02"]
[TimeControl "180+1"]
[Date "2022.11.30"]
[WhiteClock "0:00:05"]
[BlackClock "0:00:04"]

1. e4 {[%clk 0:03:00]}  c5 {[%clk 0:02:59]} 2. Nc3 {[%clk 0:02:58]}  Nc6 {[%clk 0:02:58]} 3. Nge2 {[%clk 0:02:58]}  e6 {[%clk 0:02:53]} 4. d4 {[%clk 0:02:58]}  cxd4 {[%clk 0:02:54]} 5. Nxd4 {[%clk 0:02:58]}  a6 {[%clk 0:02:54]} 6. g3 {[%clk 0:02:58]}  d6 {[%clk 0:02:53]} 7. Bg2 {[%clk 0:02:58]}  Bd7 {[%clk 0:02:53]} 8. O-O {[%clk 0:02:58]}  Nf6 {[%clk 0:02:53]} 9. Re1 {[%clk 0:02:58]}  Be7 {[%clk 0:02:52]} 10. a4 {[%clk 0:02:57]}  O-O {[%clk 0:02:52]} 11. Nxc6 {[%clk 0:02:56]}  Bxc6 {[%clk 0:02:52]} 12. a5 {[%clk 0:02:55]}  Rc8 {[%clk 0:02:51]} 13. Be3 {[%clk 0:02:55]}  Nd7 {[%clk 0:02:50]} 14. Qd2 {[%clk 0:02:50]}  Qc7 {[%clk 0:02:48]} 15. f4 {[%clk 0:02:39]}  b5 {[%clk 0:02:42]} 16. axb6 {[%clk 0:02:35]}  Nxb6 {[%clk 0:02:42]} 17. Qd4 {[%clk 0:02:23]}  Rb8 {[%clk 0:02:40]} 18. Rxa6 {[%clk 0:02:21]}  Nd7 {[%clk 0:02:40]} 19. Rea1 {[%clk 0:02:07]}  Rfc8 {[%clk 0:02:31]} 20. Ra7 {[%clk 0:02:06]}  Qd8 {[%clk 0:02:30]} 21. Nd1 {[%clk 0:01:58]}  d5 {[%clk 0:02:29]} 22. Qd2 {[%clk 0:01:12]}  Bc5 {[%clk 0:02:21]} 23. Bxc5 {[%clk 0:01:09]}  Nxc5 {[%clk 0:02:22]} 24. exd5 {[%clk 0:01:08]}  exd5 {[%clk 0:02:13]} 25. b4 {[%clk 0:01:02]}  Ne6 {[%clk 0:02:02]} 26. c3 {[%clk 0:00:54]}  d4 {[%clk 0:01:58]} 27. Bxc6 {[%clk 0:00:48]}  Rxc6 {[%clk 0:01:59]} 28. R1a6 {[%clk 0:00:26]}  Rxa6 {[%clk 0:01:45]} 29. Rxa6 {[%clk 0:00:27]}  Qc8 {[%clk 0:01:45]} 30. Ra5 {[%clk 0:00:25]}  dxc3 {[%clk 0:01:23]} 31. Qxc3 {[%clk 0:00:25]}  Qd8 {[%clk 0:01:18]} 32. Nf2 {[%clk 0:00:25]}  h6 {[%clk 0:01:14]} 33. Qc4 {[%clk 0:00:21]}  Qd2 {[%clk 0:01:07]} 34. Rb5 {[%clk 0:00:17]}  Rd8 {[%clk 0:01:02]} 35. Re5 {[%clk 0:00:17]}  Qb2 {[%clk 0:00:45]} 36. Re2 {[%clk 0:00:15]}  Qb1+ {[%clk 0:00:37]} 37. Kg2 {[%clk 0:00:15]}  Rb8 {[%clk 0:00:37]} 38. Re4 {[%clk 0:00:14]}  Qb2 {[%clk 0:00:33]} 39. h4 {[%clk 0:00:14]}  Rd8 {[%clk 0:00:27]} 40. f5 {[%clk 0:00:14]}  Rd2 {[%clk 0:00:25]} 41. fxe6 {[%clk 0:00:07]}  Rxf2+ {[%clk 0:00:25]} 42. Kh3 {[%clk 0:00:08]}  Rh2+ {[%clk 0:00:20]} 43. Kg4 {[%clk 0:00:08]}  f5+ {[%clk 0:00:06]} 44. Kxf5 {[%clk 0:00:08]}  Qf6+ {[%clk 0:00:04]} 45. Kg4 {[%clk 0:00:08]}  h5+ {[%clk 0:00:04]} 46. Kxh5 {[%clk 0:00:05]}  Qf5# {[%clk 0:00:04]} 0-1


[Site "https://www.chess.com"]

[Event "Titled Tuesday Blitz November 29 Late 2022"]
[White "Janaszak, Dawid"]
[Black "Zhigalko, Sergei"]
[WhiteFideId "1119206"]
[BlackFideId "13502956"]
[WhiteElo "2226"]
[BlackElo "2662"]
[Result "0-1"]
[Round "02"]
[TimeControl "180+1"]
[Date "2022.11.30"]
[WhiteClock "0:00:08"]
[BlackClock "0:00:06"]

1. d4 {[%clk 0:03:00]}  Nf6 {[%clk 0:02:59]} 2. Bf4 {[%clk 0:03:00]}  e6 {[%clk 0:02:59]} 3. Nf3 {[%clk 0:03:00]}  d5 {[%clk 0:02:59]} 4. e3 {[%clk 0:02:59]}  Bd6 {[%clk 0:03:00]} 5. Nbd2 {[%clk 0:02:59]}  O-O {[%clk 0:03:00]} 6. c3 {[%clk 0:02:58]}  c5 {[%clk 0:02:57]} 7. Bd3 {[%clk 0:02:55]}  Nc6 {[%clk 0:02:58]} 8. Qe2 {[%clk 0:02:48]}  Qc7 {[%clk 0:02:53]} 9. Bg5 {[%clk 0:02:37]}  Be7 {[%clk 0:02:47]} 10. O-O {[%clk 0:02:05]}  h6 {[%clk 0:02:41]} 11. Bh4 {[%clk 0:02:02]}  e5 {[%clk 0:02:35]} 12. dxe5 {[%clk 0:01:55]}  Nxe5 {[%clk 0:02:34]} 13. Nxe5 {[%clk 0:01:51]}  Qxe5 {[%clk 0:02:33]} 14. f4 {[%clk 0:01:35]}  Qc7 {[%clk 0:02:28]} 15. e4 {[%clk 0:01:34]}  c4 {[%clk 0:02:22]} 16. Bc2 {[%clk 0:01:23]}  dxe4 {[%clk 0:02:13]} 17. Nxe4 {[%clk 0:01:03]}  Qb6+ {[%clk 0:01:40]} 18. Kh1 {[%clk 0:01:03]}  Bd7 {[%clk 0:01:26]} 19. Nxf6+ {[%clk 0:00:49]}  Bxf6 {[%clk 0:01:27]} 20. Bxf6 {[%clk 0:00:49]}  Qxf6 {[%clk 0:01:27]} 21. Qe4 {[%clk 0:00:50]}  g6 {[%clk 0:01:23]} 22. Qxc4 {[%clk 0:00:50]}  Rfe8 {[%clk 0:01:17]} 23. Rae1 {[%clk 0:00:47]}  a6 {[%clk 0:01:06]} 24. Qd4 {[%clk 0:00:43]}  Qxd4 {[%clk 0:01:05]} 25. cxd4 {[%clk 0:00:44]}  Bb5 {[%clk 0:01:05]} 26. Rg1 {[%clk 0:00:41]}  Rad8 {[%clk 0:01:03]} 27. f5 {[%clk 0:00:36]}  gxf5 {[%clk 0:00:55]} 28. Rxe8+ {[%clk 0:00:35]}  Bxe8 {[%clk 0:00:49]} 29. Bxf5 {[%clk 0:00:35]}  Rxd4 {[%clk 0:00:49]} 30. Rc1 {[%clk 0:00:31]}  Bc6 {[%clk 0:00:41]} 31. Kg1 {[%clk 0:00:28]}  Kg7 {[%clk 0:00:39]} 32. Rc2 {[%clk 0:00:23]}  Kf6 {[%clk 0:00:39]} 33. Bh3 {[%clk 0:00:20]}  Be4 {[%clk 0:00:38]} 34. Rf2+ {[%clk 0:00:20]}  Ke7 {[%clk 0:00:36]} 35. Re2 {[%clk 0:00:18]}  Kd6 {[%clk 0:00:36]} 36. Kf2 {[%clk 0:00:18]}  f5 {[%clk 0:00:36]} 37. Ke3 {[%clk 0:00:17]}  Ke5 {[%clk 0:00:36]} 38. Rd2 {[%clk 0:00:15]}  f4+ {[%clk 0:00:36]} 39. Ke2 {[%clk 0:00:15]}  Rc4 {[%clk 0:00:28]} 40. b3 {[%clk 0:00:13]}  Rc3 {[%clk 0:00:27]} 41. Kf2 {[%clk 0:00:14]}  a5 {[%clk 0:00:21]} 42. Re2 {[%clk 0:00:14]}  Rc2 {[%clk 0:00:20]} 43. Rxc2 {[%clk 0:00:13]}  Bxc2 {[%clk 0:00:21]} 44. Bc8 {[%clk 0:00:13]}  b6 {[%clk 0:00:20]} 45. Ba6 {[%clk 0:00:12]}  Bb1 {[%clk 0:00:16]} 46. a3 {[%clk 0:00:13]}  Be4 {[%clk 0:00:15]} 47. g3 {[%clk 0:00:12]}  Bd5 {[%clk 0:00:09]} 48. b4 {[%clk 0:00:10]}  fxg3+ {[%clk 0:00:03]} 49. Kxg3 {[%clk 0:00:09]}  a4 {[%clk 0:00:04]} 50. Bb5 {[%clk 0:00:09]}  Bb3 {[%clk 0:00:04]} 51. Kh4 {[%clk 0:00:09]}  Kd4 {[%clk 0:00:05]} 52. Kh5 {[%clk 0:00:09]}  Kc3 {[%clk 0:00:05]} 53. Kxh6 {[%clk 0:00:09]}  Kb2 {[%clk 0:00:06]} 54. Kg5 {[%clk 0:00:08]}  Kxa3 {[%clk 0:00:06]} 55. h4 {[%clk 0:00:08]}  Kxb4 {[%clk 0:00:07]} 56. Be8 {[%clk 0:00:08]}  a3 {[%clk 0:00:06]} 0-1


[Site "https://www.chess.com"]